{"text_format":"3","workbook":"xlsx","n_sheets":8,"sheets":["Pokyny","Pravidelní návštěvníci","Příležitostní návštěvníci","Potenciální zákazníci","Plán budování sítě 1. čtvrtletí","Plán budování sítě 2. čtvrtletí","Plán budování sítě 3. čtvrtletí","Plán budování sítě 4. čtvrtletí"],"not_rendered":{"defined_names":7},"read":"whole","date_system":"1900"}

{"sheet":"Pokyny","index":0,"n_rows":17,"n_cols":5,"rows_kept":17,"merged":[[0,0,0,2],[1,1,1,6],[2,1,2,6],[3,1,3,6],[4,1,4,6],[5,1,5,6],[6,1,6,6],[7,1,7,6],[8,1,8,6],[9,1,9,6],[10,1,10,6],[11,1,11,6]]}
["Sledování kontaktů",null,null,"Pokyny"]
[null,"1. Rozhodněte, do které kategorie váš kontakt spadá:"]
[null,"• Pravidelní návštěvníci – lidé, se kterými chcete být v kontaktu pravidelně"]
[null,"• Příležitostní návštěvníci – lidé, se kterými chcete být v kontaktu několikrát ročně"]
[null,"• Potenciální zákazníci – lidé nebo společnosti, které chcete mít v záznamech pro případ, že je bude potřeba kontaktovat"]
[null,"2. Otevřete odpovídající kartu listu."]
[null,"3. Zadejte informace o kontaktu (pokud chcete v buňce vytvořit nový řádek, stiskněte kombinaci kláves Alt+Enter ve Windows nebo Option+Return na Macu)."]
[null,"Tady najdete nové pokyny na řádku pro mobilní excelové aplikace."]
[null,"4. Ve sloupci Datum dalšího kontaktu odstraňte ukázkové datum nebo vzorec, zadejte, kdy se s kontaktem chcete spojit, \na potom stiskněte Enter."]
[null,"5. Sloupec Datum dalšího kontaktu zčervená, když je dané datum velmi blízko, zežloutne, když se datum blíží, a \nzobrazí se zeleně, když máte spoustu času."]
[null,"6. S blížícím se datem dalšího kontaktu se barva odpovídajícím způsobem změní."]
[null,"7. Jakmile se s kontaktem spojíte, zadejte do sloupce Hotovo? hodnotu ANO. Datum se zobrazí šedě. "]
[null,"8. Pokud se s kontaktem chcete spojit znovu, nahraďte ANO hodnotou NE a zadejte nové Datum dalšího kontaktu."]
[null,null,"Červená","Žlutá","Zelená"]
[null,"Pravidelní návštěvníci","Za 1–3 dny","Za 4–7 dní","Za více než 8–14 dní"]
[null,"Příležitostní návštěvníci","Za 1–7 dní","Za 8–45 dní","Za více než 46–90 dní"]
[null,"Potenciální zákazníci","Za 1–14 dní","Za 15–60 dní","Za více než 60–120 dní"]

{"sheet":"Pravidelní návštěvníci","index":1,"n_rows":7,"n_cols":8,"rows_kept":7,"merged":[[0,0,0,2]]}
["Sledování kontaktů",null,null,"Pravidelní návštěvníci"]
[]
["Jméno","Společnost","Kontaktní údaje","Kde jsme se setkali","Poznámky","Datum dalšího kontaktu","Hotovo","Poznámky z konverzace"]
["Miloš Zahradníček","Adventure Works","Projektový manažer\nmilos@adventure-works.com\n(234) 555-0134\nadventure-works.com\nlinkedin.com/in/milos-zahradnicek","Veletrh 2010","Zeptat se na dcerku Sandru a na to, jak probíhá přestavba. Nemá rád velké skupiny a ostré jídlo.",{"$f":"TODAY()+8","v":"2021-07-21"},"NE"]
["Jméno","Název společnosti","Pozice\nE-mailová adresa\nTelefonní číslo\nWeb\nOdkazy na soc. sítě\n","Místo","Vložte si poznámky, které si o této osobě chcete zapamatovat. Například kde jste se setkali, o čem jste mluvili, co chcete zmínit při příští konverzaci atd.",{"$f":"TODAY()-3","v":"2021-07-10"},"ANO"]
["Jméno","Název společnosti","Pozice\nE-mailová adresa\nTelefonní číslo\nWeb\nOdkazy na soc. sítě\n","Místo","Vložte si poznámky, které si o této osobě chcete zapamatovat. Například kde jste se setkali, o čem jste mluvili, co chcete zmínit při příští konverzaci atd.",{"$f":"TODAY()+-3","v":"2021-07-10"},"NE"]
["Jméno","Název společnosti","Pozice\nE-mailová adresa\nTelefonní číslo\nWeb\nOdkazy na soc. sítě\n","Místo","Vložte si poznámky, které si o této osobě chcete zapamatovat. Například kde jste se setkali, o čem jste mluvili, co chcete zmínit při příští konverzaci atd.",{"$f":"TODAY()+6","v":"2021-07-19"},"NE"]

{"sheet":"Příležitostní návštěvníci","index":2,"n_rows":7,"n_cols":8,"rows_kept":7,"merged":[[0,0,0,2]]}
["Sledování kontaktů",null,null,"Příležitostní návštěvníci"]
[]
["Jméno","Společnost","Kontaktní údaje","Kde jsme se setkali","Poznámky","Datum dalšího kontaktu","Hotovo","Poznámky z konverzace"]
["Miloš Zahradníček","Adventure Works","Správce zdrojů\nmilos@adventure-works.com\n(434) 555-0123\nwww.adventure-works.com\nlinkedin.com/in/milos-zahradnicek","Dovolená ve Vermontu 2016","Hodí se pro nábor kontaktů i marketingové otázky",{"$f":"TODAY()+90","v":"2021-10-11"},"NE"]
["Jméno","Název společnosti","Pozice\nE-mailová adresa\nTelefonní číslo\nWeb\nOdkazy na soc. sítě\n","Místo","Vložte si poznámky, které si o této osobě chcete zapamatovat. Například kde jste se setkali, o čem jste mluvili, co chcete zmínit při příští konverzaci atd.",{"$f":"TODAY()-3","v":"2021-07-10"},"ANO"]
["Jméno","Název společnosti","Pozice\nE-mailová adresa\nTelefonní číslo\nWeb\nOdkazy na soc. sítě\n","Místo","Vložte si poznámky, které si o této osobě chcete zapamatovat. Například kde jste se setkali, o čem jste mluvili, co chcete zmínit při příští konverzaci atd.",{"$f":"TODAY()+-3","v":"2021-07-10"},"NE"]
["Jméno","Název společnosti","Pozice\nE-mailová adresa\nTelefonní číslo\nWeb\nOdkazy na soc. sítě\n","Místo","Vložte si poznámky, které si o této osobě chcete zapamatovat. Například kde jste se setkali, o čem jste mluvili, co chcete zmínit při příští konverzaci atd.",{"$f":"TODAY()+40","v":"2021-08-22"},"NE"]

{"sheet":"Potenciální zákazníci","index":3,"n_rows":7,"n_cols":8,"rows_kept":7,"merged":[[0,0,0,2]]}
["Sledování kontaktů",null,null,"Potenciální zákazníci"]
[]
["Jméno","Společnost","Kontaktní údaje","Kde jsme se setkali","Poznámky","Datum dalšího kontaktu","Hotovo","Poznámky z konverzace"]
["Miloš Zahradníček","Na volné noze","Návrhář\nadresa@priklad.com\n425-555-0123\nexample.com\nlinkedin.com/in/milos-zahradnicek","Synova promoce 2016","Absolvent – velmi schopný. Může se hodit pro budoucí klienty.",{"$f":"TODAY()+89","v":"2021-10-10"},"NE"]
["Jméno","Název společnosti","Pozice\nE-mailová adresa\nTelefonní číslo\nWeb\nOdkazy na soc. sítě\n","Místo","Vložte si poznámky, které si o této osobě chcete zapamatovat. Například kde jste se setkali, o čem jste mluvili, co chcete zmínit při příští konverzaci atd.",{"$f":"TODAY()-3","v":"2021-07-10"},"ANO"]
["Jméno","Název společnosti","Pozice\nE-mailová adresa\nTelefonní číslo\nWeb\nOdkazy na soc. sítě\n","Místo","Vložte si poznámky, které si o této osobě chcete zapamatovat. Například kde jste se setkali, o čem jste mluvili, co chcete zmínit při příští konverzaci atd.",{"$f":"TODAY()+-3","v":"2021-07-10"},"NE"]
["Jméno","Název společnosti","Pozice\nE-mailová adresa\nTelefonní číslo\nWeb\nOdkazy na soc. sítě\n","Místo","Vložte si poznámky, které si o této osobě chcete zapamatovat. Například kde jste se setkali, o čem jste mluvili, co chcete zmínit při příští konverzaci atd.",{"$f":"TODAY()+30","v":"2021-08-12"},"NE"]

{"sheet":"Plán budování sítě 1. čtvrtletí","index":4,"n_rows":20,"n_cols":6,"rows_kept":20,"merged":[[0,0,0,3],[2,0,2,3],[4,0,4,3],[14,5,17,5],[18,0,18,3]]}
["Plán rozšíření sítě"]
["Pokyny"]
["Napište, jak plánujete v tomto čtvrtletí rozšířit svou síť kontaktů (tj. uskutečňovat více telefonních hovorů, víc cestovat atd.). Pokaždé, když získáte nový kontakt, změňte množství skutečně vytvořených kontaktů, abyste měli přehled o tom, jak blízko jste ke svému cíli."]
[]
["Plán na rozšíření mé sítě kontaktů v tomto čtvrtletí"]
["1. Víc telefonovat"]
["2. Víc cestovat"]
[]
[]
[]
[]
[]
[]
["Čtvrtletní cíl v množství kontaktů","Termín","Skutečně vytvořené kontakty za čtvrtletí","Výsledky"]
[20,{"$f":"TODAY()","v":"2021-07-13"},12,{"$f":"IF(tblGoals[[#This Row],[Čtvrtletní cíl v množství kontaktů]]>0,tblGoals[[#This Row],[Skutečně vytvořené kontakty za čtvrtletí]]/tblGoals[[#This Row],[Čtvrtletní cíl v množství kontaktů]],\"\")","v":{"v":0.6,"d":"60%"}},null,"0 % – 25 %\n26 % – 50 %\n51 % – 75 %\n76 % – 100 %\n\nBarva se mění na základě dosažené procentuální hodnoty"]
[{"$nulls":3},{"$f":"IF(tblGoals[[#This Row],[Čtvrtletní cíl v množství kontaktů]]>0,tblGoals[[#This Row],[Skutečně vytvořené kontakty za čtvrtletí]]/tblGoals[[#This Row],[Čtvrtletní cíl v množství kontaktů]],\"\")","v":""}]
[{"$nulls":3},{"$f":"IF(tblGoals[[#This Row],[Čtvrtletní cíl v množství kontaktů]]>0,tblGoals[[#This Row],[Skutečně vytvořené kontakty za čtvrtletí]]/tblGoals[[#This Row],[Čtvrtletní cíl v množství kontaktů]],\"\")","v":""}]
[]
["Reflexe výsledků / Co zlepšit"]
["Skoro. Zkusit místo toho volat kolem oběda."]

{"sheet":"Plán budování sítě 2. čtvrtletí","index":5,"n_rows":20,"n_cols":6,"rows_kept":20,"merged":[[0,0,0,3],[2,0,2,3],[4,0,4,3],[14,5,17,5],[18,0,18,3]]}
["Plán rozšíření sítě"]
["Pokyny"]
["Napište, jak plánujete v tomto čtvrtletí rozšířit svou síť kontaktů (tj. uskutečňovat více telefonních hovorů, víc cestovat atd.). Pokaždé, když získáte nový kontakt, změňte množství skutečně vytvořených kontaktů, abyste měli přehled o tom, jak blízko jste ke svému cíli."]
[]
["Plán na rozšíření mé sítě kontaktů v tomto čtvrtletí"]
["1. Víc telefonovat"]
["2. Víc cestovat"]
[]
[]
[]
[]
[]
[]
["Čtvrtletní cíl v množství kontaktů","Termín","Skutečně vytvořené kontakty za čtvrtletí","Výsledky"]
[20,{"$f":"TODAY()","v":"2021-07-13"},12,{"$f":"IF(tblGoals3[[#This Row],[Čtvrtletní cíl v množství kontaktů]]>0,tblGoals3[[#This Row],[Skutečně vytvořené kontakty za čtvrtletí]]/tblGoals3[[#This Row],[Čtvrtletní cíl v množství kontaktů]],\"\")","v":{"v":0.6,"d":"60%"}},null,"0 % – 25 %\n26 % – 50 %\n51 % – 75 %\n76 % – 100 %\n\nBarva se mění na základě dosažené procentuální hodnoty"]
[{"$nulls":3},{"$f":"IF(tblGoals3[[#This Row],[Čtvrtletní cíl v množství kontaktů]]>0,tblGoals3[[#This Row],[Skutečně vytvořené kontakty za čtvrtletí]]/tblGoals3[[#This Row],[Čtvrtletní cíl v množství kontaktů]],\"\")","v":""}]
[{"$nulls":3},{"$f":"IF(tblGoals3[[#This Row],[Čtvrtletní cíl v množství kontaktů]]>0,tblGoals3[[#This Row],[Skutečně vytvořené kontakty za čtvrtletí]]/tblGoals3[[#This Row],[Čtvrtletní cíl v množství kontaktů]],\"\")","v":""}]
[]
["Reflexe výsledků / Co zlepšit"]
["Skoro. Zkusit místo toho volat kolem oběda."]

{"sheet":"Plán budování sítě 3. čtvrtletí","index":6,"n_rows":20,"n_cols":6,"rows_kept":20,"merged":[[0,0,0,3],[2,0,2,3],[4,0,4,3],[14,5,17,5],[18,0,18,3]]}
["Plán rozšíření sítě"]
["Pokyny"]
["Napište, jak plánujete v tomto čtvrtletí rozšířit svou síť kontaktů (tj. uskutečňovat více telefonních hovorů, víc cestovat atd.). Pokaždé, když získáte nový kontakt, změňte množství skutečně vytvořených kontaktů, abyste měli přehled o tom, jak blízko jste ke svému cíli."]
[]
["Plán na rozšíření mé sítě kontaktů v tomto čtvrtletí"]
["1. Víc telefonovat"]
["2. Víc cestovat"]
[]
[]
[]
[]
[]
[]
["Čtvrtletní cíl v množství kontaktů","Termín","Skutečně vytvořené kontakty za čtvrtletí","Výsledky"]
[20,{"$f":"TODAY()","v":"2021-07-13"},12,{"$f":"IF(tblGoals34[[#This Row],[Čtvrtletní cíl v množství kontaktů]]>0,tblGoals34[[#This Row],[Skutečně vytvořené kontakty za čtvrtletí]]/tblGoals34[[#This Row],[Čtvrtletní cíl v množství kontaktů]],\"\")","v":{"v":0.6,"d":"60%"}},null,"0 % – 25 %\n26 % – 50 %\n51 % – 75 %\n76 % – 100 %\n\nBarva se mění na základě dosažené procentuální hodnoty"]
[{"$nulls":3},{"$f":"IF(tblGoals34[[#This Row],[Čtvrtletní cíl v množství kontaktů]]>0,tblGoals34[[#This Row],[Skutečně vytvořené kontakty za čtvrtletí]]/tblGoals34[[#This Row],[Čtvrtletní cíl v množství kontaktů]],\"\")","v":""}]
[{"$nulls":3},{"$f":"IF(tblGoals34[[#This Row],[Čtvrtletní cíl v množství kontaktů]]>0,tblGoals34[[#This Row],[Skutečně vytvořené kontakty za čtvrtletí]]/tblGoals34[[#This Row],[Čtvrtletní cíl v množství kontaktů]],\"\")","v":""}]
[]
["Reflexe výsledků / Co zlepšit"]
["Skoro. Zkusit místo toho volat kolem oběda."]

{"sheet":"Plán budování sítě 4. čtvrtletí","index":7,"n_rows":20,"n_cols":6,"rows_kept":20,"merged":[[0,0,0,3],[2,0,2,3],[4,0,4,3],[14,5,17,5],[18,0,18,3]]}
["Plán rozšíření sítě"]
["Pokyny"]
["Napište, jak plánujete v tomto čtvrtletí rozšířit svou síť kontaktů (tj. uskutečňovat více telefonních hovorů, víc cestovat atd.). Pokaždé, když získáte nový kontakt, změňte množství skutečně vytvořených kontaktů, abyste měli přehled o tom, jak blízko jste ke svému cíli."]
[]
["Plán na rozšíření mé sítě kontaktů v tomto čtvrtletí"]
["1. Víc telefonovat"]
["2. Víc cestovat"]
[]
[]
[]
[]
[]
[]
["Čtvrtletní cíl v množství kontaktů","Termín","Skutečně vytvořené kontakty za čtvrtletí","Výsledky"]
[20,{"$f":"TODAY()","v":"2021-07-13"},12,{"$f":"IF(tblGoals348[[#This Row],[Čtvrtletní cíl v množství kontaktů]]>0,tblGoals348[[#This Row],[Skutečně vytvořené kontakty za čtvrtletí]]/tblGoals348[[#This Row],[Čtvrtletní cíl v množství kontaktů]],\"\")","v":{"v":0.6,"d":"60%"}},null,"0 % – 25 %\n26 % – 50 %\n51 % – 75 %\n76 % – 100 %\n\nBarva se mění na základě dosažené procentuální hodnoty"]
[{"$nulls":3},{"$f":"IF(tblGoals348[[#This Row],[Čtvrtletní cíl v množství kontaktů]]>0,tblGoals348[[#This Row],[Skutečně vytvořené kontakty za čtvrtletí]]/tblGoals348[[#This Row],[Čtvrtletní cíl v množství kontaktů]],\"\")","v":""}]
[{"$nulls":3},{"$f":"IF(tblGoals348[[#This Row],[Čtvrtletní cíl v množství kontaktů]]>0,tblGoals348[[#This Row],[Skutečně vytvořené kontakty za čtvrtletí]]/tblGoals348[[#This Row],[Čtvrtletní cíl v množství kontaktů]],\"\")","v":""}]
[]
["Reflexe výsledků / Co zlepšit"]
["Skoro. Zkusit místo toho volat kolem oběda."]